[Event "9th RTU Rapid 2019"]
[Site "Riga"]
[Date "2019.08.04"]
[Round "7.28"]
[White "Indricans, Vadims"]
[Black "Alvarado Ascanio, Francisco"]
[Result "0-1"]
[WhiteElo "1878"]
[BlackElo "2166"]
[PlyCount "100"]
[EventDate "2019.08.05"]
[EventType "swiss"]
[EventCountry "LAT"]
[TimeControl "5400+30"]
[WhiteClock "0:00:23"]
[BlackClock "0:03:45"]

1. e4 {[%emt 1:15:22]} e6 {[%emt 1:15:21]} 2. d4 {[%emt 0:00:26]} d5 {[%emt 0:00:26]} 3. exd5 {[%emt 0:00:26]} exd5 {[%emt 0:00:26]} 4. Bd3 {[%emt 0:00:27]} Nc6 {[%emt 0:00:51]} 5. Nf3 {[%emt 0:00:28]} Bd6 {[%emt 0:00:31]} 6. O-O {[%emt 0:00:29]} Nge7 {[%emt 0:00:27]} 7. h3 {[%emt 0:00:32]} Bf5 {[%emt 0:01:10]} 8. Bg5 {[%emt 0:00:37]} f6 {[%emt 0:00:34]} 9. Bh4 {[%emt 0:00:27]} Qd7 {[%emt 0:00:28]} 10. Bg3 {[%emt 0:00:44]} Bxg3 {[%emt 0:00:33]} 11. fxg3 {[%emt 0:00:27]} O-O-O {[%emt 0:00:54]} 12. Nc3 {[%emt 0:00:36]} Rde8 {[%emt 0:01:55]} 13. a3 {[%emt 0:01:07]} Qd6 {[%emt 0:03:04]} 14. g4 {[%emt 0:01:16]} Bxd3 {[%emt 0:00:59]} 15. Qxd3 {[%emt 0:00:46]} g5 {[%emt 0:00:27]} 16. b4 {[%emt 0:00:57]} Kb8 {[%emt 0:02:27]} 17. Rae1 {[%emt 0:02:32]} Ng6 {[%emt 0:02:27]} 18. Nb5 {[%emt 0:04:04]} Qg3 {[%emt 0:01:10]} 19. Ne5 {[%emt 0:00:26]} Qxd3 {[%emt 0:00:29]} 20. Nxd3 {[%emt 0:00:26]} a6 {[%emt 0:01:37]} 21. Nc3 {[%emt 0:00:32]} Nxd4 {[%emt 0:00:39]} 22. Rxe8+ {[%emt 0:00:28]} Rxe8 {[%emt 0:00:27]} 23. Nxd5 {[%emt 0:00:26]} Nxc2 {[%emt 0:01:51]} 24. Nxf6 {[%emt 0:00:40]} Rd8 {[%emt 0:01:02]} 25. Nc5 {[%emt 0:01:20]} Rd2 {[%emt 0:00:48]} 26. Rf2 {[%emt 0:01:00]} Rd1+ {[%emt 0:00:27]} 27. Kh2 {[%emt 0:00:26]} Ne3 {[%emt 0:00:35]} 28. g3 {[%emt 0:01:07]} Ne5 {[%emt 0:00:44]} 29. Nxh7 {[%emt 0:00:56]} b6 {[%emt 0:01:28]} 30. Ne4 {[%emt 0:00:58]} Nf1+ {[%emt 0:00:33]} 31. Kg2 {[%emt 0:00:27]} Ne3+ {[%emt 0:00:26]} 32. Kh2 {[%emt 0:00:32]} Nf1+ {[%emt 0:00:25]} 33. Rxf1 {[%emt 0:00:51]} Rxf1 {[%emt 0:00:27]} 34. Nhxg5 {[%emt 0:00:26]} Ra1 {[%emt 0:00:27]} 35. h4 {[%emt 0:00:28]} Rxa3 {[%emt 0:00:28]} 36. Nf6 {[%emt 0:00:31]} c5 {[%emt 0:00:30]} 37. bxc5 {[%emt 0:00:27]} bxc5 {[%emt 0:00:25]} 38. h5 {[%emt 0:00:27]} c4 {[%emt 0:00:29]} 39. h6 {[%emt 0:00:34]} Ng6 {[%emt 0:00:31]} 40. h7 {[%emt 0:00:37]} c3 {[%emt 0:00:26]} 41. Nd7+ {[%emt 0:00:26]} Ka7 {[%emt 0:00:29]} 42. Ne5 {[%emt 0:00:27]} Ra2+ {[%emt 0:00:48]} 43. Kh3 {[%emt 0:00:27]} Nh8 {[%emt 0:00:35]} 44. Ngf7 {[%emt 0:00:27]} c2 {[%emt 0:00:32]} 45. Nxh8 {[%emt 0:01:10]} c1=Q {[%emt 0:00:27]} 46. g5 {[%emt 0:00:40]} Qh1+ {[%emt 0:00:30]} 47. Kg4 {[%emt 0:00:25]} Qxh7 {[%emt 0:00:30]} 48. Nhf7 {[%emt 0:00:28]} Ra4+ {[%emt 0:00:29]} 49. Kf3 {[%emt 0:00:30]} Qe4+ {[%emt 0:00:27]} 50. Kf2 {[%emt 0:00:27]} Ra2+ {[%emt 0:00:26] g4 [%emt 00:00:23]} 0-1

[Event "9th RTU Rapid 2019"]
[Site "Riga"]
[Date "2019.08.04"]
[Round "7.29"]
[White "Efremov, Vladislav"]
[Black "Ciolek, Andreas"]
[Result "1/2-1/2"]
[WhiteElo "1956"]
[BlackElo "2158"]
[PlyCount "75"]
[EventDate "2019.08.05"]
[EventType "swiss"]
[EventCountry "LAT"]
[TimeControl "5400+30"]
[WhiteClock "0:08:27"]
[BlackClock "0:03:25"]

1. d4 {[%emt 1:15:20]} Nf6 {[%emt 1:15:22]} 2. c4 {[%emt 0:00:27]} g6 {[%emt 0:00:27]} 3. Nc3 {[%emt 0:00:26]} Bg7 {[%emt 0:00:26]} 4. e4 {[%emt 0:00:27]} d6 {[%emt 0:00:25]} 5. h3 {[%emt 0:00:26]} O-O {[%emt 0:00:28]} 6. Bg5 {[%emt 0:00:27]} c5 {[%emt 0:00:33]} 7. d5 {[%emt 0:00:27]} e6 {[%emt 0:00:31]} 8. Bd3 {[%emt 0:00:34]} exd5 {[%emt 0:00:32]} 9. exd5 {[%emt 0:00:26]} Nbd7 {[%emt 0:01:09]} 10. Nf3 {[%emt 0:00:32]} Re8+ {[%emt 0:00:29]} 11. Kf1 {[%emt 0:00:26]} Ne5 {[%emt 0:00:53]} 12. Nxe5 {[%emt 0:01:15]} Rxe5 {[%emt 0:00:28]} 13. Bf4 {[%emt 0:00:42]} Re8 {[%emt 0:00:27]} 14. Bg5 {[%emt 0:03:38]} Qb6 {[%emt 0:01:02]} 15. Qd2 {[%emt 0:00:50]} Nd7 {[%emt 0:00:31]} 16. f4 {[%emt 0:01:35]} Qb4 {[%emt 0:02:02]} 17. Rc1 {[%emt 0:01:35]} Bd4 {[%emt 0:00:40]} 18. a3 {[%emt 0:02:29]} Qb6 {[%emt 0:00:55]} 19. Re1 {[%emt 0:00:30]} Rxe1+ {[%emt 0:00:36]} 20. Kxe1 {[%emt 0:00:26]} Nf8 {[%emt 0:00:39]} 21. Kd1 {[%emt 0:00:36]} Bd7 {[%emt 0:00:33]} 22. Kc1 {[%emt 0:00:34]} Re8 {[%emt 0:00:28]} 23. Re1 {[%emt 0:00:29]} Qb3 {[%emt 0:00:54]} 24. Rxe8 {[%emt 0:00:35]} Bxe8 {[%emt 0:00:28]} 25. Qc2 {[%emt 0:02:19]} Qxc2+ {[%emt 0:02:01]} 26. Kxc2 {[%emt 0:00:31]} f6 {[%emt 0:00:29]} 27. Bh4 {[%emt 0:00:34]} Bxc3 {[%emt 0:00:32]} 28. Kxc3 {[%emt 0:00:30]} Kf7 {[%emt 0:00:25]} 29. b4 {[%emt 0:00:44]} b6 {[%emt 0:00:29]} 30. b5 {[%emt 0:00:56]} h6 {[%emt 0:00:45]} 31. g4 {[%emt 0:00:43]} g5 {[%emt 0:01:01]} 32. Bg3 {[%emt 0:00:43]} Ke7 {[%emt 0:00:27]} 33. f5 {[%emt 0:00:44]} h5 {[%emt 0:00:27]} 34. Be2 {[%emt 0:00:36]} hxg4 {[%emt 0:00:26]} 35. hxg4 {[%emt 0:00:27]} Nd7 {[%emt 0:00:28]} 36. Kd3 {[%emt 0:00:36]} Nb8 {[%emt 0:00:31]} 37. a4 {[%emt 0:00:31]} a5 {[%emt 0:01:04]} 38. Bf3 {[%emt 0:00:29]} 1/2-1/2

[Event "9th RTU Rapid 2019"]
[Site "Riga"]
[Date "2019.08.04"]
[Round "7.30"]
[White "Low, Kevin"]
[Black "Daudzvardis, Janis"]
[Result "1-0"]
[WhiteElo "2153"]
[BlackElo "2037"]
[PlyCount "95"]
[EventDate "2019.08.05"]
[EventType "swiss"]
[EventCountry "LAT"]
[TimeControl "5400+30"]
[WhiteClock "0:05:30"]
[BlackClock "0:00:15"]

1. e4 {[%emt 1:15:22]} g6 {[%emt 0:00:02]} 2. d4 {[%emt 0:00:01]} c6 {[%emt 0:00:02]} 3. Nf3 {[%emt 0:00:03]} d5 {[%emt 1:16:10]} 4. e5 {[%emt 0:00:02]} Bg4 {[%emt 0:00:01]} 5. Nbd2 {[%emt 0:02:21]} e6 {[%emt 0:00:53]} 6. h3 {[%emt 0:00:49]} Bxf3 {[%emt 0:00:27]} 7. Nxf3 {[%emt 0:00:26]} Bg7 {[%emt 0:00:26]} 8. c4 {[%emt 0:00:40]} dxc4 {[%emt 0:00:28]} 9. Bxc4 {[%emt 0:00:03]} Nd7 {[%emt 0:00:01]} 10. O-O {[%emt 0:00:30]} Nb6 {[%emt 0:00:01]} 11. Bb3 {[%emt 0:01:18]} Ne7 {[%emt 0:01:16]} 12. a4 {[%emt 0:00:56]} O-O {[%emt 0:00:32]} 13. a5 {[%emt 0:01:30]} Nbd5 {[%emt 0:00:27]} 14. Bd2 {[%emt 0:02:50]} Qd7 {[%emt 0:00:29]} 15. h4 {[%emt 0:01:56]} Rac8 {[%emt 0:00:54]} 16. Qc1 {[%emt 0:00:46]} b6 {[%emt 0:00:50]} 17. Bh6 {[%emt 0:01:46]} c5 {[%emt 0:00:02]} 18. Bxg7 {[%emt 0:00:54]} Kxg7 {[%emt 0:00:51]} 19. Qd2 {[%emt 0:01:01]} c4 {[%emt 0:00:55]} 20. Bc2 {[%emt 0:00:44]} b5 {[%emt 0:00:26]} 21. h5 {[%emt 0:00:33]} h6 {[%emt 0:00:33]} 22. g3 {[%emt 0:01:18]} b4 {[%emt 0:00:28]} 23. Kg2 {[%emt 0:00:48]} b3 {[%emt 0:00:32]} 24. Bb1 {[%emt 0:01:13]} Rh8 {[%emt 0:00:31]} 25. hxg6 {[%emt 0:00:29]} fxg6 {[%emt 0:00:37]} 26. Qd1 {[%emt 0:01:09]} Rcf8 {[%emt 0:00:43]} 27. Nd2 {[%emt 0:00:40]} Qc6 {[%emt 0:00:48]} 28. Ne4 {[%emt 0:00:06]} Nf5 {[%emt 0:01:09]} 29. Qd2 {[%emt 0:01:16]} Rf7 {[%emt 0:01:03]} 30. Rc1 {[%emt 0:00:42]} Rhf8 {[%emt 0:00:51]} 31. Bd3 {[%emt 0:00:39]} c3 {[%emt 0:05:39]} 32. bxc3 {[%emt 0:00:34]} Qb7 {[%emt 0:00:27]} 33. Rab1 {[%emt 0:00:35]} Nde7 {[%emt 0:01:00]} 34. a6 {[%emt 0:00:39]} Qd5 {[%emt 0:00:34]} 35. Rh1 {[%emt 0:00:36]} g5 {[%emt 0:00:46]} 36. Qd1 {[%emt 0:00:49]} Nxd4 {[%emt 0:00:51]} 37. Rb2 {[%emt 0:01:25]} Ndf5 {[%emt 0:00:50]} 38. Rxb3 {[%emt 0:00:42]} Qxe5 {[%emt 0:00:30]} 39. Rb5 {[%emt 0:00:41]} Nd5 {[%emt 0:00:41]} 40. Qe2 {[%emt 0:00:56]} Qc7 {[%emt 0:00:43]} 41. c4 {[%emt 0:00:28]} Nf6 {[%emt 0:00:35]} 42. Nxf6 {[%emt 0:00:29]} Rxf6 {[%emt 0:00:27]} 43. Rb7 {[%emt 0:00:27]} R8f7 {[%emt 0:00:33]} 44. Rxc7 {[%emt 0:00:26]} Rxc7 {[%emt 0:00:26]} 45. Qe5 {[%emt 0:00:29]} Rcf7 {[%emt 0:00:33]} 46. c5 {[%emt 0:00:34]} Ne7 {[%emt 0:00:28]} 47. Rf1 {[%emt 0:00:35]} Nc6 {[%emt 0:00:29]} 48. Qe4 {[%emt 0:00:29]} 1-0

[Event "9th RTU Rapid 2019"]
[Site "Riga"]
[Date "2019.08.04"]
[Round "7.31"]
[White "Ivanisvili, Andrejs"]
[Black "Melderis, Uldis"]
[Result "1-0"]
[WhiteElo "2144"]
[BlackElo "1897"]
[PlyCount "109"]
[EventDate "2019.08.05"]
[EventType "swiss"]
[EventCountry "LAT"]
[TimeControl "5400+30"]
[WhiteClock "0:07:20"]
[BlackClock "0:01:14"]

1. g3 {[%emt 1:15:22]} e6 {[%emt 1:15:22]} 2. Bg2 {[%emt 0:00:26]} d5 {[%emt 0:00:27]} 3. d3 {[%emt 0:00:27]} c5 {[%emt 0:00:26]} 4. Nd2 {[%emt 0:00:28]} Nc6 {[%emt 0:00:27]} 5. e4 {[%emt 0:00:27]} d4 {[%emt 0:00:26]} 6. f4 {[%emt 0:00:37]} e5 {[%emt 0:00:28]} 7. f5 {[%emt 0:00:42]} Nf6 {[%emt 0:00:36]} 8. h3 {[%emt 0:00:48]} Qc7 {[%emt 0:00:30]} 9. g4 {[%emt 0:00:50]} h6 {[%emt 0:00:27]} 10. Ngf3 {[%emt 0:01:13]} Be7 {[%emt 0:00:28]} 11. O-O {[%emt 0:00:37]} Bd7 {[%emt 0:00:29]} 12. a4 {[%emt 0:01:08]} a6 {[%emt 0:00:46]} 13. Nc4 {[%emt 0:00:30]} Rb8 {[%emt 0:00:39]} 14. a5 {[%emt 0:00:48]} Bd6 {[%emt 0:00:49]} 15. Bd2 {[%emt 0:00:57]} Ng8 {[%emt 0:00:42]} 16. Qe2 {[%emt 0:00:57]} f6 {[%emt 0:00:27]} 17. h4 {[%emt 0:01:59]} Nd8 {[%emt 0:01:01]} 18. g5 {[%emt 0:00:46]} Bb5 {[%emt 0:00:38]} 19. Nb6 {[%emt 0:02:02]} Bc6 {[%emt 0:01:18]} 20. Kf2 {[%emt 0:01:15]} Qe7 {[%emt 0:00:28]} 21. Rh1 {[%emt 0:00:32]} Bc7 {[%emt 0:00:31]} 22. Nc4 {[%emt 0:01:26]} Bb5 {[%emt 0:00:28]} 23. Na3 {[%emt 0:00:31]} Bc6 {[%emt 0:00:26]} 24. Nc4 {[%emt 0:00:43]} Bb5 {[%emt 0:00:27]} 25. Na3 {[%emt 0:00:26]} Bc6 {[%emt 0:00:25]} 26. Rhb1 {[%emt 0:01:03]} Bd6 {[%emt 0:00:56]} 27. Nc4 {[%emt 0:00:31]} Bb5 {[%emt 0:00:30]} 28. Nb6 {[%emt 0:00:29]} Bc6 {[%emt 0:00:34]} 29. c3 {[%emt 0:01:40]} Bc7 {[%emt 0:00:33]} 30. Nc4 {[%emt 0:00:33]} Bb5 {[%emt 0:00:31]} 31. Na3 {[%emt 0:00:29]} Qd7 {[%emt 0:00:47]} 32. c4 {[%emt 0:00:38]} Bc6 {[%emt 0:00:50]} 33. b4 {[%emt 0:00:26]} cxb4 {[%emt 0:00:33]} 34. Bxb4 {[%emt 0:00:27]} Bd6 {[%emt 0:00:35]} 35. c5 {[%emt 0:00:31]} Bc7 {[%emt 0:00:27]} 36. Nd2 {[%emt 0:00:56]} hxg5 {[%emt 0:00:33]} 37. hxg5 {[%emt 0:00:26]} fxg5 {[%emt 0:00:33]} 38. Rh1 {[%emt 0:00:32]} Rh4 {[%emt 0:00:44]} 39. Rxh4 {[%emt 0:00:33]} gxh4 {[%emt 0:00:26]} 40. Qg4 {[%emt 0:00:34]} Qe7 {[%emt 0:00:44]} 41. Rh1 {[%emt 0:00:40]} Nh6 {[%emt 0:00:27]} 42. Qh5+ {[%emt 0:00:58]} Ndf7 {[%emt 0:00:45]} 43. Nf3 {[%emt 0:00:42]} Kf8 {[%emt 0:00:40]} 44. Rxh4 {[%emt 0:00:32]} Bd8 {[%emt 0:00:30]} 45. Nc4 {[%emt 0:01:10]} Qf6 {[%emt 0:00:37]} 46. Rh1 {[%emt 0:00:33]} Kg8 {[%emt 0:00:40]} 47. Rh3 {[%emt 0:01:07]} Bc7 {[%emt 0:00:30]} 48. Rg3 {[%emt 0:00:27]} Kh7 {[%emt 0:01:03]} 49. Rg6 {[%emt 0:00:29]} Qe7 {[%emt 0:01:02]} 50. Bd2 {[%emt 0:00:44]} Be8 {[%emt 0:01:08]} 51. f6 {[%emt 0:00:40]} Qxf6 {[%emt 0:02:15]} 52. Rxf6 {[%emt 0:00:34]} gxf6 {[%emt 0:00:26]} 53. Bh3 {[%emt 0:00:42]} Ng5 {[%emt 0:00:43]} 54. Nxg5+ {[%emt 0:00:42]} fxg5 {[%emt 0:00:27]} 55. Bf5+ {[%emt 0:00:31]} 1-0

[Event "9th RTU Rapid 2019"]
[Site "Riga"]
[Date "2019.08.04"]
[Round "7.32"]
[White "Stabulnieks, Klavs"]
[Black "Pavlovs, Nikita"]
[Result "1-0"]
[WhiteElo "2136"]
[BlackElo "1845"]
[PlyCount "143"]
[EventDate "2019.08.05"]
[EventType "swiss"]
[EventCountry "LAT"]
[TimeControl "5400+30"]
[WhiteClock "0:00:36"]
[BlackClock "0:00:46"]

1. d4 {[%emt 1:15:21]} Nf6 {[%emt 1:15:21]} 2. c4 {[%emt 0:00:27]} g6 {[%emt 0:00:27]} 3. Nc3 {[%emt 0:00:27]} d5 {[%emt 0:00:26]} 4. cxd5 {[%emt 0:00:29]} Nxd5 {[%emt 0:00:27]} 5. Bd2 {[%emt 0:00:26]} Bg7 {[%emt 0:00:31]} 6. e4 {[%emt 0:00:28]} Nxc3 {[%emt 0:00:27]} 7. Bxc3 {[%emt 0:00:27]} O-O {[%emt 0:00:28]} 8. Qd2 {[%emt 0:00:27]} c5 {[%emt 0:00:26]} 9. d5 {[%emt 0:00:29]} e6 {[%emt 0:00:28]} 10. Bc4 {[%emt 0:01:15]} exd5 {[%emt 0:00:28]} 11. Bxd5 {[%emt 0:00:28]} Nd7 {[%emt 0:00:32]} 12. Rd1 {[%emt 0:00:40]} Qe7 {[%emt 0:00:55]} 13. Nf3 {[%emt 0:04:23]} Nf6 {[%emt 0:00:59]} 14. O-O {[%emt 0:01:03]} Bg4 {[%emt 0:04:08]} 15. Qf4 {[%emt 0:02:15]} Be6 {[%emt 0:02:47]} 16. Rfe1 {[%emt 0:01:23]} Rad8 {[%emt 0:01:26]} 17. Bxe6 {[%emt 0:01:29]} Qxe6 {[%emt 0:00:57]} 18. Rxd8 {[%emt 0:00:55]} Rxd8 {[%emt 0:00:30]} 19. Qc7 {[%emt 0:00:27]} Qc8 {[%emt 0:01:15]} 20. Qa5 {[%emt 0:02:57]} a6 {[%emt 0:01:48]} 21. Nd2 {[%emt 0:00:56]} Re8 {[%emt 0:03:36]} 22. f3 {[%emt 0:00:36]} b5 {[%emt 0:01:45]} 23. Nb3 {[%emt 0:00:51]} b4 {[%emt 0:01:05]} 24. Bxf6 {[%emt 0:01:14]} Bxf6 {[%emt 0:00:26]} 25. Rc1 {[%emt 0:00:26]} Bxb2 {[%emt 0:00:37]} 26. Rxc5 {[%emt 0:00:34]} Qd7 {[%emt 0:00:38]} 27. Rd5 {[%emt 0:00:29]} Qb7 {[%emt 0:00:27]} 28. Nc5 {[%emt 0:01:03]} Qb5 {[%emt 0:00:32]} 29. Qxa6 {[%emt 0:00:39]} Qxa6 {[%emt 0:00:27]} 30. Nxa6 {[%emt 0:00:27]} Bc3 {[%emt 0:00:28]} 31. Rb5 {[%emt 0:01:11]} Ra8 {[%emt 0:00:31]} 32. Nxb4 {[%emt 0:00:28]} Bxb4 {[%emt 0:00:27]} 33. Rxb4 {[%emt 0:00:26]} Rxa2 {[%emt 0:00:26]} 34. h4 {[%emt 0:00:26]} h5 {[%emt 0:00:26]} 35. Kh2 {[%emt 0:00:26]} Kg7 {[%emt 0:00:27]} 36. Kg3 {[%emt 0:00:29]} Rc2 {[%emt 0:00:28]} 37. Rb1 {[%emt 0:00:36]} Ra2 {[%emt 0:00:27]} 38. Rf1 {[%emt 0:00:26]} Kf6 {[%emt 0:00:28]} 39. Rf2 {[%emt 0:00:26]} Ra3 {[%emt 0:00:26]} 40. Kf4 {[%emt 0:00:27]} Ra4 {[%emt 0:00:27]} 41. Rb2 {[%emt 0:00:28]} Ra6 {[%emt 0:00:28]} 42. Rb8 {[%emt 0:00:35]} Rc6 {[%emt 0:00:29]} 43. Rg8 {[%emt 0:00:29]} Rc4 {[%emt 0:00:31]} 44. g4 {[%emt 0:00:33]} hxg4 {[%emt 0:00:27]} 45. fxg4 {[%emt 0:00:28]} Rc1 {[%emt 0:00:51]} 46. e5+ {[%emt 0:00:44]} Ke7 {[%emt 0:00:34]} 47. Ra8 {[%emt 0:00:50]} Rf1+ {[%emt 0:00:30]} 48. Kg5 {[%emt 0:00:27]} Ke6 {[%emt 0:00:31]} 49. Ra5 {[%emt 0:00:39]} Rf2 {[%emt 0:00:26]} 50. Kh6 {[%emt 0:00:43]} Rh2 {[%emt 0:00:33]} 51. Kg5 {[%emt 0:00:33]} Rf2 {[%emt 0:00:27]} 52. h5 {[%emt 0:00:26]} gxh5 {[%emt 0:00:27]} 53. gxh5 {[%emt 0:00:26]} Rg2+ {[%emt 0:00:34]} 54. Kh6 {[%emt 0:00:28]} Kf5 {[%emt 0:00:35]} 55. Kh7 {[%emt 0:00:31]} Rg1 {[%emt 0:00:38]} 56. h6 {[%emt 0:00:28]} f6 {[%emt 0:00:33]} 57. exf6+ {[%emt 0:00:36]} Kxf6 {[%emt 0:00:26]} 58. Ra7 {[%emt 0:00:27]} Rh1 {[%emt 0:00:32]} 59. Rg7 {[%emt 0:00:30]} Rh2 {[%emt 0:00:28]} 60. Rg6+ {[%emt 0:00:28]} Kf7 {[%emt 0:00:26]} 61. Rg3 {[%emt 0:00:27]} Rh1 {[%emt 0:00:28]} 62. Rf3+ {[%emt 0:00:28]} Ke7 {[%emt 0:00:21]} 63. Kg7 {[%emt 0:00:28]} Rg1+ {[%emt 0:00:28]} 64. Kh8 {[%emt 0:00:26]} Rh1 {[%emt 0:00:28]} 65. h7 {[%emt 0:00:27]} Rh2 {[%emt 0:00:29]} 66. Rf4 {[%emt 0:00:34]} Rh1 {[%emt 0:00:29]} 67. Kg7 {[%emt 0:00:27]} Rg1+ {[%emt 0:00:29]} 68. Kh6 {[%emt 0:00:26]} Rh1+ {[%emt 0:00:27]} 69. Kg6 {[%emt 0:00:28]} Rh2 {[%emt 0:00:34]} 70. Rf5 {[%emt 0:00:28]} Rg2+ {[%emt 0:00:29]} 71. Rg5 {[%emt 0:00:28]} Rh2 {[%emt 0:00:26]} 72. Rh5 {[%emt 0:00:26]} 1-0

[Event "9th RTU Rapid 2019"]
[Site "Riga"]
[Date "2019.08.04"]
[Round "7.33"]
[White "Korolev, Alexandr"]
[Black "Laimins, Lauris"]
[Result "0-1"]
[WhiteElo "2102"]
[BlackElo "2123"]
[PlyCount "106"]
[EventDate "2019.08.05"]
[EventType "swiss"]
[EventCountry "LAT"]
[TimeControl "5400+30"]
[WhiteClock "0:06:21"]
[BlackClock "0:00:10"]

1. Nf3 {[%emt 1:15:23]} d5 {[%emt 1:15:21]} 2. c4 {[%emt 0:00:26]} d4 {[%emt 0:00:27]} 3. b4 {[%emt 0:00:29]} a5 {[%emt 0:00:27]} 4. b5 {[%emt 0:00:39]} c5 {[%emt 0:00:28]} 5. e3 {[%emt 0:01:13]} f6 {[%emt 0:02:09]} 6. exd4 {[%emt 0:00:37]} cxd4 {[%emt 0:00:27]} 7. Bd3 {[%emt 0:01:25]} Nd7 {[%emt 0:02:08]} 8. Ba3 {[%emt 0:01:20]} e5 {[%emt 0:00:30]} 9. Bxf8 {[%emt 0:01:12]} Kxf8 {[%emt 0:00:28]} 10. O-O {[%emt 0:00:58]} Nc5 {[%emt 0:00:28]} 11. Qe2 {[%emt 0:01:29]} Ne7 {[%emt 0:01:19]} 12. Na3 {[%emt 0:01:48]} Qd6 {[%emt 0:00:50]} 13. Nb1 {[%emt 0:03:13]} Bg4 {[%emt 0:00:55]} 14. h3 {[%emt 0:00:55]} Bh5 {[%emt 0:00:29]} 15. g4 {[%emt 0:00:34]} Bf7 {[%emt 0:00:35]} 16. Rc1 {[%emt 0:01:25]} h5 {[%emt 0:00:31]} 17. g5 {[%emt 0:00:33]} Be6 {[%emt 0:00:31]} 18. Kg2 {[%emt 0:01:09]} Re8 {[%emt 0:00:57]} 19. a4 {[%emt 0:00:36]} Qd7 {[%emt 0:01:34]} 20. Ng1 {[%emt 0:00:50]} Nf5 {[%emt 0:00:39]} 21. Na3 {[%emt 0:01:36]} Nh4+ {[%emt 0:00:48]} 22. Kh2 {[%emt 0:00:28]} Qd6 {[%emt 0:00:29]} 23. Kh1 {[%emt 0:01:11]} f5 {[%emt 0:01:02]} 24. f3 {[%emt 0:00:40]} Ng6 {[%emt 0:00:27]} 25. Bb1 {[%emt 0:01:01]} Nf4 {[%emt 0:00:34]} 26. Qf2 {[%emt 0:00:30]} b6 {[%emt 0:00:37]} 27. Qh2 {[%emt 0:00:47]} d3 {[%emt 0:00:32]} 28. Re1 {[%emt 0:00:33]} h4 {[%emt 0:00:49]} 29. Ba2 {[%emt 0:00:46]} Bc8 {[%emt 0:00:30]} 30. Nb1 {[%emt 0:00:29]} Bb7 {[%emt 0:00:27]} 31. Nc3 {[%emt 0:00:27]} Qd4 {[%emt 0:00:35]} 32. Nd5 {[%emt 0:00:43]} Nxd5 {[%emt 0:00:37]} 33. cxd5 {[%emt 0:00:26]} Rh5 {[%emt 0:00:42]} 34. Qg2 {[%emt 0:00:44]} Bxd5 {[%emt 0:00:37]} 35. Bxd5 {[%emt 0:00:26]} Qxd5 {[%emt 0:00:27]} 36. f4 {[%emt 0:00:33]} Qxg2+ {[%emt 0:00:28]} 37. Kxg2 {[%emt 0:00:26]} e4 {[%emt 0:00:31]} 38. Re3 {[%emt 0:00:35]} Kf7 {[%emt 0:00:28]} 39. Rae1 {[%emt 0:00:26]} Rhh8 {[%emt 0:00:27]} 40. Ra1 {[%emt 0:00:28]} g6 {[%emt 0:00:27]} 41. Ree1 {[%emt 0:00:34]} Re6 {[%emt 0:00:29]} 42. Kf2 {[%emt 0:00:27]} Rd8 {[%emt 0:00:31]} 43. Ke3 {[%emt 0:00:26]} Rc8 {[%emt 0:00:50]} 44. Rec1 {[%emt 0:00:27]} Re7 {[%emt 0:00:32]} 45. Rc4 {[%emt 0:00:29]} Ke6 {[%emt 0:00:29]} 46. Rac1 {[%emt 0:00:26]} Rec7 {[%emt 0:00:26]} 47. R1c3 {[%emt 0:00:40]} Ke7 {[%emt 0:01:03]} 48. Rd4 {[%emt 0:00:31]} Ne6 {[%emt 0:00:29]} 49. Rxc7+ {[%emt 0:00:46]} Rxc7 {[%emt 0:00:27]} 50. Rd5 {[%emt 0:00:28]} Rc4 {[%emt 0:00:34]} 51. Re5 {[%emt 0:00:39]} Kd6 {[%emt 0:00:28]} 52. Nf3 {[%emt 0:00:31]} exf3 {[%emt 0:00:34]} 53. Kxd3 {[%emt 0:00:27]} Nxf4+ {[%emt 0:00:08]} 0-1

[Event "9th RTU Rapid 2019"]
[Site "Riga"]
[Date "2019.08.04"]
[Round "8.1"]
[White "Svane, Rasmus"]
[Black "Pultinevicius, Paulius"]
[Result "1-0"]
[ECO "E01"]
[WhiteElo "2612"]
[BlackElo "2501"]
[Annotator "ChessBase"]
[PlyCount "109"]
[EventDate "2019.08.05"]
[EventType "swiss"]
[EventCountry "LAT"]
[SourceTitle "playchess.com"]
[Source "ChessBase"]
[SourceQuality "1"]
[TimeControl "5400+30"]

1. Nf3 {[%emt 1:15:21]} d5 {[%emt 1:15:24]} 2. d4 {[%emt 0:00:28]} Nf6 {[%emt 0:00:28]} 3. c4 {[%emt 0:00:27]} c6 {[%emt 0:00:32]} 4. Nbd2 {[%emt 0:00:28]} e6 {[%emt 0:00:33]} 5. g3 {[%emt 0:00:33]} Nbd7 {[%emt 0:00:27]} 6. Bg2 {[%emt 0:00:29]} Bd6 {[%emt 0:00:29]} 7. O-O {[%emt 0:00:34]} O-O {[%emt 0:00:32]} 8. Qc2 {[%emt 0:01:29]} h6 {[%emt 0:00:27]} 9. Rd1 {[%emt 0:01:32]} b6 {[%emt 0:01:29]} 10. e4 {[%emt 0:01:12]} dxe4 {[%emt 0:00:31]} 11. Nxe4 {[%emt 0:00:27]} Nxe4 {[%emt 0:00:36]} 12. Qxe4 {[%emt 0:00:26]} Bb7 {[%emt 0:00:28]} 13. c5 {[%emt 0:02:23]} Be7 {[%emt 0:00:36]} 14. Qc2 {[%emt 0:00:54]} Nf6 {[%emt 0:00:37]} 15. Ne5 {[%emt 0:00:36]} Nd5 {[%emt 0:00:45]} 16. cxb6 {[%emt 0:02:43]} Nb4 {[%emt 0:01:03]} 17. Qc4 {[%emt 0:00:29]} axb6 {[%emt 0:00:42]} 18. Bd2 {[%emt 0:00:29]} b5 {[%emt 0:01:02]} 19. Qb3 {[%emt 0:00:34]} Nd5 {[%emt 0:01:25]} 20. a4 {[%emt 0:01:10]} b4 {[%emt 0:03:00]} 21. Rdc1 {[%emt 0:00:40]} Qd6 {[%emt 0:01:30]} 22. a5 {[%emt 0:01:29]} Rfc8 {[%emt 0:01:01]} 23. Nd3 {[%emt 0:00:32]} Ba6 {[%emt 0:01:08]} 24. Bxd5 {[%emt 0:01:06]} Qxd5 {[%emt 0:00:47]} 25. Qxd5 {[%emt 0:00:36]} cxd5 {[%emt 0:00:27]} 26. Rxc8+ {[%emt 0:00:42]} Rxc8 {[%emt 0:00:33]} 27. Bxb4 {[%emt 0:01:21]} Bxd3 {[%emt 0:00:31]} 28. Bxe7 {[%emt 0:00:27]} Ba6 {[%emt 0:01:25]} 29. b4 {[%emt 0:01:18]} Rc6 {[%emt 0:00:43]} 30. Bc5 {[%emt 0:00:39]} Bb5 {[%emt 0:00:33]} 31. f3 {[%emt 0:00:39]} h5 {[%emt 0:00:29]} 32. Kf2 {[%emt 0:00:28]} f6 {[%emt 0:00:30]} 33. Re1 {[%emt 0:00:34]} Kf7 {[%emt 0:00:31]} 34. h4 {[%emt 0:00:33]} Rc8 {[%emt 0:01:44]} 35. g4 {[%emt 0:00:37]} hxg4 36. fxg4 {[%emt 0:00:26]} Re8 {[%emt 0:01:49]} 37. Bd6 {[%emt 0:00:29]} Rc8 {[%emt 0:00:27]} 38. Bc5 {[%emt 0:00:27]} Re8 {[%emt 0:00:26]} 39. Kg3 {[%emt 0:00:47]} e5 {[%emt 0:00:37]} 40. h5 {[%emt 0:01:25]} exd4 {[%emt 0:03:16]} 41. Rxe8 {[%emt 0:00:29]} Kxe8 {[%emt 0:00:26]} 42. Bxd4 {[%emt 0:00:28]} Kd7 {[%emt 0:00:53]} 43. Kf4 {[%emt 0:00:44]} Be2 {[%emt 0:00:27]} 44. Bc5 {[%emt 0:01:46]} Kc6 {[%emt 0:00:32]} 45. Bf8 {[%emt 0:00:31]} d4 {[%emt 0:00:26]} 46. Bxg7 {[%emt 0:00:29]} d3 {[%emt 0:00:30]} 47. Ke3 {[%emt 0:00:37]} Bxg4 {[%emt 0:00:34]} 48. h6 {[%emt 0:00:26]} Bf5 {[%emt 0:00:27]} 49. Bxf6 {[%emt 0:00:26]} Kb5 {[%emt 0:00:35]} 50. Bc3 {[%emt 0:00:27]} Bh7 {[%emt 0:00:30]} 51. Kd4 {[%emt 0:00:32]} Bg6 {[%emt 0:00:26]} 52. Bd2 {[%emt 0:00:27]} Bh7 {[%emt 0:00:34]} 53. Be1 {[%emt 0:00:27]} Bg6 {[%emt 0:00:29]} 54. Ke5 {[%emt 0:00:29]} Bh7 {[%emt 0:00:31]} 55. Kf6 {[%emt 0:00:13]} 1-0